bitfinex/quotes_SOLUSD_20240703
["timestamp","ask_amount","ask_price","bid_price","bid_amount"]
[1720033164453,13.4,141.92,141.91,0.34]
[1720033164825,13.4,141.92,141.9,0.34]
[1720033165020,13.4,141.91,141.9,0.34]
[1720033165840,5.65820709,141.96,141.9,19.42845214]
[1720033166042,13.4,142.0,141.9,27.24845214]
[1720033166244,16.2244,142.04,142.0,7.0418]
[1720033166430,16.2244,142.04,142.01,7.3814]
[1720033166636,0.8461316,142.06,142.03,7.0407]
[1720033166837,0.8461316,142.06,142.04,0.34]
[1720033167042,13.4,142.05,142.04,0.34]
[1720033167547,7.8854316,142.06,142.03,0.34]
[1720033167851,13.4,142.04,142.03,0.34]
[1720033168040,20.4402,142.04,142.03,0.34]
[1720033168244,13.4,142.04,142.03,0.34]
[1720033169254,7.8855316,142.06,142.03,0.34]
[1720033169549,13.4,142.04,142.02,0.34]
[1720033169747,13.4,142.03,142.02,0.34]
[1720033169951,13.4,142.03,142.01,0.34]
[1720033170857,13.4,142.03,142.02,0.17]
[1720033171154,13.4,142.03,142.0,7.3818]
[1720033172143,7.0403,142.04,142.0,7.3818]
[1720033172144,13.4,142.02,142.0,7.3818]
[1720033172651,13.4,142.02,142.0,0.34]
[1720033173657,7.0403,142.04,142.0,7.3821]
[1720033173855,13.4,142.02,142.0,7.3821]
[1720033174239,13.4,142.03,142.0,7.3821]
[1720033175354,7.0399,142.05,142.0,7.3821]
[1720033175558,7.0399,142.05,142.01,7.0417]
[1720033175762,13.4,142.04,142.02,0.34]
[1720033176550,13.4,142.03,142.01,0.34]
[1720033178359,13.4,142.04,142.01,0.34]
[1720033178567,7.0399,142.05,142.01,0.34]
[1720033178860,13.4,142.04,142.01,0.34]
[1720033179066,0.8461316,142.06,142.01,32.75174743]
[1720033179067,14.2461316,142.06,142.01,32.75174743]
[1720033179245,0.8461316,142.06,142.02,7.0409]
[1720033179451,14.2461316,142.06,142.03,0.34]
[1720033180069,21.2855316,142.06,142.03,0.34]
[1720033184873,7.8855316,142.06,142.03,0.34]
[1720033185075,21.2855316,142.06,142.03,0.34]
[1720033186751,21.2855316,142.06,142.04,0.17]
[1720033187065,21.2855316,142.06,142.02,0.34]
[1720033188873,21.2855316,142.06,142.02,7.3812]
[1720033189452,21.2855316,142.06,142.02,0.34]
[1720033189953,7.0397,142.05,142.02,0.34]
[1720033190277,20.4397,142.05,142.02,0.34]
[1720033190655,0.8461316,142.06,141.97,4.2791]
[1720033190970,13.4,142.01,141.97,28.932]
[1720033191352,13.4,142.01,141.98,7.0431]
[1720033192375,13.4,142.01,141.99,0.34]
[1720033192778,13.4,142.01,142.0,0.17]
[1720033192977,13.4,142.01,141.98,0.34]
[1720033193150,13.4,142.01,141.98,7.383]
[1720033193555,20.4419,142.01,141.97,24.6529]
[1720033193780,7.0419,142.01,141.97,17.6093]
[1720033194276,13.4,141.99,141.97,17.6093]
[1720033194457,13.4,141.99,141.97,24.653]
[1720033194863,13.4,141.99,141.98,0.17]
[1720033195070,7.0414,142.02,141.98,0.34]
[1720033195273,13.4,142.0,141.98,0.34]
[1720033196359,13.4,141.99,141.98,0.34]
[1720033200385,7.0438,141.97,141.92,17.6152]
[1720033200686,13.4,141.95,141.92,24.6612]
[1720033200883,23.6287,142.01,141.92,17.6152]
[1720033201054,15.3454,142.02,141.97,7.0436]
[1720033201262,20.4435,141.98,141.93,17.6133]
[1720033201571,13.4,141.95,141.9,21.8964]
[1720033201776,13.4,141.94,141.9,21.8964]
[1720033202185,13.4,141.94,141.9,17.6173]
[1720033202186,13.4,141.91,141.9,17.6173]
[1720033202392,13.4,141.91,141.89,7.0476]
[1720033202890,13.4,141.91,141.9,7.0472]
[1720033203184,13.4,141.92,141.9,7.0472]
[1720033203382,13.4,141.92,141.91,7.0467]
[1720033203598,15.9308,141.96,141.94,7.0452]
[1720033203771,13.4,141.95,141.93,24.6594]
[1720033203962,7.0436,141.98,141.94,7.045]
[1720033204158,13.4,141.95,141.93,24.6597]
[1720033204357,13.4,141.95,141.94,0.17]
[1720033204579,13.4,141.95,141.94,0.34]
[1720033204766,20.4447,141.95,141.94,0.34]
[1720033205181,13.4,141.95,141.94,0.34]
[1720033205390,13.4,141.95,141.94,0.17]
[1720033205685,20.4447,141.95,141.94,0.17]
[1720033205890,13.4,141.95,141.93,0.17]
[1720033206189,13.4,141.95,141.92,17.9552]
[1720033206489,13.4,141.93,141.92,0.34]
[1720033206687,13.4,141.93,141.91,0.34]
[1720033206985,13.4,141.94,141.91,24.8323]
[1720033207295,13.4,141.93,141.91,17.7857]
[1720033207789,13.4,141.92,141.91,0.17]
[1720033207973,13.4,141.92,141.9,0.17]
[1720033208291,13.4,141.92,141.9,0.34]
[1720033208788,13.4,141.92,141.9,7.387]
[1720033209098,13.4,141.96,141.9,7.387]
[1720033209099,7.0457,141.93,141.9,0.17]
[1720033209273,20.87040709,142.0,141.9,17.7875]
[1720033209274,38.47660709,142.0,141.9,17.7875]
[1720033209472,13.4,141.93,141.91,7.0463]
[1720033209668,13.4,141.93,141.92,0.17]
[1720033210269,13.4,141.93,141.92,0.34]
[1720033210685,20.446,141.93,141.86,39.5228]
[1720033210876,15.378,141.94,141.87,7.0485]
[1720033210877,13.4,141.89,141.87,7.0485]
[1720033211080,13.4,141.88,141.82,4.2791]
[1720033211282,13.4,141.87,141.85,7.0493]
[1720033211486,7.0473,141.9,141.85,7.0493]
[1720033211676,13.4,141.87,141.86,7.0491]
[1720033212292,13.4,141.87,141.86,0.34]
[1720033212488,13.4,141.87,141.86,0.17]
[1720033213078,13.4,141.87,141.85,24.6731]
[1720033213277,13.4,141.86,141.85,24.6731]
[1720033213483,13.4,141.86,141.85,17.6238]
[1720033213870,13.4,141.86,141.83,7.0504]
[1720033214066,13.4,141.85,141.83,7.0504]
[1720033214478,13.4,141.84,141.83,7.0504]
[1720033215386,13.4,141.84,141.83,0.34]
[1720033216486,13.4,141.84,141.81,7.0512]
[1720033216679,13.4,141.82,141.81,7.0512]
[1720033217280,13.4,141.82,141.79,24.6828]
[1720033217492,13.4,141.81,141.79,17.6306]
[1720033217681,13.4,141.81,141.8,7.0518]
[1720033219093,13.4,141.81,141.8,7.2218]
[1720033219397,13.4,141.81,141.8,7.3918]
[1720033219578,20.4516,141.81,141.75,24.1313]
[1720033219779,13.4,141.78,141.77,24.6874]
[1720033220079,13.4,141.79,141.77,24.6874]
[1720033220675,13.4,141.79,141.78,7.0531]
[1720033221197,13.4,141.79,141.78,7.3931]
[1720033221693,13.4,141.79,141.78,0.34]
[1720033222073,13.4,141.79,141.77,7.2236]
[1720033222275,13.4,141.78,141.77,0.17]
[1720033223400,13.4,141.78,141.77,0.34]
[1720033223904,13.4,141.78,141.77,7.3936]
[1720033224277,13.4,141.79,141.77,7.3936]
[1720033224787,13.4,141.79,141.77,0.34]
[1720033224981,23.3879,141.82,141.77,7.3935]
[1720033225183,23.3879,141.82,141.78,7.0531]
[1720033225506,13.4,141.8,141.79,0.34]
[1720033225715,13.4,141.8,141.79,0.17]
[1720033226226,7.0498,141.85,141.81,7.0516]
[1720033226509,7.0506,141.83,141.82,0.17]
[1720033226799,7.0514,141.82,141.78,0.17]
[1720033226985,13.4,141.82,141.78,0.34]
[1720033227186,13.4,141.82,141.79,7.0523]
[1720033227384,13.4,141.82,141.8,0.34]
[1720033229598,17.6202,141.89,141.81,13.4]
[1720033229809,20.4488,141.87,141.82,20.791]
[1720033230279,7.049,141.87,141.82,20.7908]
[1720033230479,7.0494,141.86,141.82,20.7908]
[1720033230680,20.4494,141.86,141.82,7.3908]
[1720033230888,7.0483,141.88,141.83,7.0506]
[1720033231092,20.4493,141.86,141.84,0.34]
[1720033231279,13.4,141.86,141.85,0.34]
[1720033231487,13.4,141.86,141.82,7.391]
[1720033231488,20.4495,141.86,141.82,0.34]
[1720033231888,13.4,141.85,141.82,0.34]
[1720033232094,20.4503,141.84,141.82,0.34]
[1720033232291,7.0506,141.83,141.82,0.34]
[1720033232581,20.4506,141.83,141.78,42.3643]
[1720033232789,20.4512,141.82,141.78,28.9643]
[1720033233101,13.4,141.8,141.75,17.6356]
[1720033233280,13.4,141.79,141.76,7.0537]
[1720033233786,13.4,141.8,141.77,7.0532]
[1720033233994,7.0513,141.82,141.77,17.6341]
[1720033234196,13.4,141.81,141.78,7.0531]
[1720033234600,13.4,141.81,141.79,0.34]
[1720033234991,20.4517,141.81,141.79,0.34]
[1720033235208,13.4,141.8,141.78,0.34]
[1720033236209,13.4,141.79,141.78,0.34]
[1720033236407,13.4,141.79,141.77,24.6877]
[1720033237288,13.4,141.78,141.74,17.6367]
[1720033237488,13.4,141.75,141.7,4.2791]
[1720033237694,15.5166,141.83,141.72,13.4]
[1720033237894,7.0523,141.8,141.76,7.054]
[1720033238092,13.4,141.78,141.76,7.054]
[1720033238606,13.4,141.79,141.77,7.0534]
[1720033238904,7.0515,141.82,141.78,0.34]
[1720033239110,13.4,141.81,141.78,7.393]
[1720033240314,13.4,141.81,141.78,0.34]
[1720033241019,20.4518,141.81,141.78,0.34]
[1720033241515,15.5166,141.83,141.78,0.34]
[1720033241516,20.4522,141.8,141.78,0.34]
[1720033241701,20.4522,141.8,141.79,0.17]
[1720033241909,7.0522,141.8,141.77,0.34]
[1720033243785,7.0527,141.79,141.77,0.34]
[1720033243990,7.0518,141.81,141.76,17.9751]
[1720033245314,7.0518,141.81,141.77,7.0536]
[1720033245616,7.0522,141.8,141.78,0.34]
[1720033245822,7.0522,141.8,141.79,0.34]
[1720033246001,7.0518,141.81,141.77,7.0536]
[1720033246313,15.5166,141.83,141.78,0.34]
[1720033246492,7.0515,141.82,141.78,7.3931]
[1720033246686,7.0507,141.83,141.78,17.9725]
[1720033246895,6.2476,141.86,141.79,8.46254105]
[1720033247209,7.0504,141.84,141.8,8.80229414]
[1720033247405,7.0504,141.84,141.8,8.63229414]
[1720033247601,7.0504,141.84,141.81,0.17]
[1720033248011,23.7883,141.9,141.81,1.5802091]
[1720033248312,16.3738,141.92,141.85,17.6241]
[1720033248495,51.5961,141.96,141.86,0.34]
[1720033248700,7.0472,141.9,141.86,7.389]
[1720033249215,7.0468,141.91,141.87,7.0486]
[1720033249420,7.0453,141.94,141.89,7.0476]
[1720033249720,40.1495,142.0,141.91,24.6627]
[1720033250022,66.9595,142.0,141.92,0.34]
[1720033250313,66.9595,142.0,141.9,7.387]
[1720033250314,7.0447,141.95,141.93,0.34]
[1720033250513,7.0447,141.95,141.9,7.387]
[1720033250715,66.9595,142.0,141.9,7.387]
[1720033250916,7.045,141.95,141.9,7.387]
[1720033251311,7.045,141.95,141.91,7.0466]
[1720033251511,7.045,141.95,141.92,0.34]
[1720033251913,7.0442,141.97,141.92,0.34]
[1720033252208,7.0442,141.96,141.92,7.3861]
[1720033252402,7.0447,141.95,141.92,0.34]
[1720033252606,7.0443,141.96,141.92,0.34]
[1720033253111,7.0438,141.97,141.92,7.3861]
[1720033253419,40.1495,142.0,141.92,7.3861]
[1720033253622,7.0437,141.97,141.92,7.3861]
[1720033253824,7.0432,141.98,141.93,7.0453]
[1720033254125,7.0437,141.97,141.94,0.34]
[1720033254295,7.0434,141.98,141.94,0.34]
[1720033254727,7.0437,141.97,141.94,0.34]
[1720033255195,17.6072,141.99,141.93,0.17]
[1720033255401,7.0452,141.94,141.93,0.17]
[1720033256016,26.81,141.98,141.88,6.2546]
[1720033256225,7.0459,141.93,141.88,13.3024]
[1720033256524,7.0459,141.93,141.89,7.0476]
[1720033256728,7.0463,141.92,141.88,30.9229]
[1720033257422,7.0469,141.91,141.85,28.0583]
[1720033258226,7.0469,141.91,141.87,7.0486]
[1720033258398,7.0469,141.91,141.88,0.34]
[1720033258841,7.0463,141.92,141.88,0.34]
[1720033259121,7.0463,141.92,141.88,7.388]
[1720033259318,7.0459,141.93,141.88,7.388]
[1720033259516,7.0463,141.92,141.88,7.388]
[1720033260203,7.0467,141.91,141.88,0.34]
[1720033260410,7.0468,141.91,141.86,7.0488]
[1720033260604,7.0473,141.9,141.86,7.0488]
[1720033260808,7.0473,141.9,141.86,7.049]
[1720033261020,7.0469,141.91,141.86,24.6715]
[1720033261223,7.0464,141.92,141.87,7.0486]
[1720033261401,7.0467,141.91,141.87,7.0486]
[1720033261723,26.81,141.96,141.88,17.7903]
[1720033261900,26.81,141.98,141.89,0.17]
[1720033262306,7.0458,141.93,141.89,0.17]
[1720033262528,7.0458,141.93,141.89,7.2175]
[1720033262733,7.0458,141.93,141.9,0.17]
[1720033263114,26.81,141.98,141.9,0.17]
[1720033263313,17.6096,141.97,141.89,0.34]
[1720033263643,32.55370792,141.98,141.89,0.34]
[1720033263811,7.0467,141.91,141.9,0.17]
[1720033264008,7.0467,141.91,141.88,0.34]
[1720033264320,15.5255,141.94,141.85,28.0582]
[1720033264321,17.6149,141.93,141.85,28.0582]
[1720033264521,15.5255,141.94,141.82,24.1916]
[1720033264837,7.0485,141.88,141.84,7.0499]
[1720033265343,7.0485,141.88,141.83,7.0505]
[1720033266037,7.0485,141.88,141.84,7.3901]
[1720033266412,7.0478,141.89,141.84,7.3901]
[1720033266743,7.0478,141.89,141.85,7.0495]
[1720033266927,7.0478,141.89,141.86,0.34]
[1720033267739,26.81,141.93,141.86,17.9622]
[1720033267914,7.0465,141.92,141.86,17.9622]
[1720033268244,7.0459,141.93,141.88,7.0478]
[1720033268441,7.0463,141.92,141.89,0.34]
[1720033268614,15.5255,141.94,141.89,0.34]
[1720033268809,7.0468,141.91,141.89,0.34]
[1720033269025,7.0468,141.91,141.88,0.34]
[1720033269748,7.0473,141.9,141.88,0.34]
[1720033269953,7.0477,141.89,141.88,0.34]
[1720033270939,7.0473,141.9,141.88,0.34]
[1720033271143,7.0473,141.9,141.87,0.34]
[1720033272444,48.6356,141.94,141.87,0.34]
[1720033272771,7.0462,141.93,141.88,7.0477]
[1720033272955,7.0462,141.93,141.89,7.3876]
[1720033273153,15.5255,141.94,141.89,0.34]
[1720033273722,33.1391,141.94,141.89,0.34]
[1720033275356,7.0472,141.9,141.89,0.34]
[1720033276969,7.0468,141.91,141.89,0.34]
[1720033277164,7.0463,141.92,141.88,7.3881]
[1720033277336,7.0467,141.91,141.88,0.34]
[1720033278663,33.1391,141.94,141.88,0.34]
[1720033278971,7.0477,141.89,141.88,0.34]
[1720033279334,7.0506,141.83,141.82,6.5646]
[1720033279538,17.6227,141.87,141.82,6.5646]
[1720033279539,7.0504,141.84,141.82,6.5646]
[1720033279836,7.0489,141.87,141.83,7.0506]
[1720033280139,7.0492,141.86,141.82,31.2435]
[1720033280335,17.6184,141.9,141.83,7.0505]
[1720033280546,7.049,141.87,141.82,31.2434]
[1720033281048,7.049,141.87,141.83,0.34]
[1720033281354,26.81,141.91,141.83,0.34]
[1720033281536,7.0485,141.88,141.83,7.3903]
[1720033281744,7.0478,141.89,141.84,7.05]
[1720033281942,7.0478,141.89,141.85,0.34]
[1720033282243,7.0488,141.87,141.85,0.34]
[1720033282440,42.3355,141.94,141.89,7.0472]
[1720033282649,5.65820709,141.96,141.94,7.0451]
[1720033282847,17.6058,142.0,141.95,0.34]
[1720033283141,7.0434,141.98,141.95,0.34]
[1720033283341,42.7264,142.02,141.95,0.34]
[1720033283342,15.9164,142.02,141.95,0.34]
[1720033283658,7.0428,141.99,141.95,0.34]
[1720033283856,15.9164,142.02,141.96,17.6099]
[1720033284064,0.8461316,142.06,141.97,1.74854384]
[1720033284256,0.8461316,142.06,142.0,7.042]
[1720033284456,0.8461316,142.06,142.02,7.0412]
[1720033284670,0.8461316,142.06,142.03,1.74799332]
[1720033284845,0.8461316,142.06,142.03,0.34]
[1720033285458,0.8461316,142.06,142.03,17.9418]
[1720033285661,0.8461316,142.06,142.03,24.9824]
[1720033286566,0.8461316,142.06,142.03,0.34]
[1720033286763,0.8461316,142.06,142.04,0.17]
[1720033286948,7.8854316,142.06,142.02,0.34]
[1720033287147,0.8461316,142.06,142.02,0.17]
[1720033287350,7.0407,142.03,142.02,0.17]
[1720033287664,7.0418,142.01,141.96,6.1075]
[1720033287852,7.0413,142.02,141.96,6.1075]
[1720033288057,7.0418,142.01,141.96,13.1516]
[1720033289265,7.0422,142.0,141.96,6.1075]
[1720033289671,7.0427,141.99,141.96,6.1075]
[1720033290267,15.1789,142.05,141.94,17.6129]
[1720033290468,6.3434,142.04,141.94,17.6129]
[1720033290665,6.3434,142.04,141.95,0.17]
[1720033290860,7.0428,141.99,141.95,0.17]
[1720033291470,17.6051,142.01,141.92,6.4898]
[1720033291766,7.0438,141.97,141.92,6.4898]
[1720033291967,17.6072,141.99,141.92,6.4898]
[1720033292142,7.0441,141.97,141.92,6.4898]
[1720033292343,7.0442,141.96,141.92,13.5359]
[1720033292673,7.0437,141.97,141.92,13.5359]
[1720033292851,7.0442,141.96,141.92,13.5359]
[1720033294168,7.0442,141.96,141.93,0.34]
[1720033295158,7.0452,141.94,141.9,17.6171]
[1720033296471,7.0452,141.94,141.91,0.34]
[1720033296972,7.0452,141.94,141.91,0.17]
[1720033298262,7.0452,141.94,141.91,0.34]
[1720033298457,7.0458,141.93,141.91,0.34]
[1720033298648,7.0454,141.94,141.9,7.3871]
[1720033298853,7.0454,141.94,141.92,0.17]
[1720033299157,7.0463,141.92,141.9,0.17]
[1720033299473,33.1119,141.97,141.89,7.2174]
[1720033299652,33.1119,141.97,141.89,7.0474]
[1720033299848,33.1119,141.97,141.88,30.6828]
[1720033300073,7.0462,141.92,141.88,30.6828]
[1720033300378,7.0462,141.92,141.89,0.17]
[1720033300570,7.0457,141.93,141.89,0.17]
[1720033301362,7.0457,141.93,141.89,0.34]
[1720033301570,7.0453,141.94,141.89,7.3875]
[1720033302797,17.6122,141.95,141.88,6.015]
[1720033302984,7.0471,141.91,141.88,6.015]
[1720033303278,7.0471,141.91,141.87,17.6216]
[1720033303782,7.0471,141.91,141.87,24.6702]
[1720033304282,7.0471,141.91,141.88,0.34]
[1720033304793,7.0462,141.92,141.88,0.34]
[1720033305287,7.0459,141.93,141.88,7.3878]
[1720033305982,7.0463,141.92,141.88,7.3878]
[1720033307593,7.0457,141.94,141.89,7.0476]
[1720033307778,48.3828,141.97,141.9,0.34]
[1720033307978,7.046,141.93,141.9,0.34]
[1720033308386,7.0462,141.92,141.91,0.34]
[1720033308589,7.0462,141.92,141.89,0.34]
[1720033309017,7.0467,141.91,141.89,0.34]
[1720033309175,7.0467,141.91,141.88,0.34]
[1720033309375,7.0467,141.91,141.9,0.17]
[1720033309577,7.0472,141.9,141.88,0.34]
[1720033310009,7.0472,141.9,141.88,0.17]
[1720033310191,7.0467,141.91,141.87,7.2186]
[1720033310723,7.0467,141.91,141.87,0.17]
[1720033311212,7.0467,141.91,141.87,0.34]
[1720033311422,17.6156,141.92,141.86,7.049]
[1720033311596,7.047,141.91,141.85,10.357]
[1720033311915,7.048,141.89,141.85,13.1272]
[1720033312422,7.0473,141.9,141.86,7.0491]
[1720033313099,7.0473,141.9,141.87,0.34]
[1720033313290,7.0473,141.9,141.88,0.34]
[1720033313485,7.0473,141.9,141.86,0.34]
[1720033314607,7.0473,141.9,141.86,7.389]
[1720033314980,26.76,141.94,141.86,0.34]
[1720033315180,39.2324,141.97,141.86,0.34]
[1720033315408,39.2324,141.97,141.88,7.048]
[1720033315624,39.2324,141.97,141.89,0.34]
[1720033315908,7.0466,141.92,141.89,0.34]
[1720033316288,7.0466,141.92,141.9,0.34]
[1720033316490,7.0466,141.92,141.88,0.34]
[1720033317014,7.0467,141.91,141.88,0.34]
[1720033319007,7.0459,141.93,141.89,7.0474]
[1720033319209,7.0459,141.93,141.9,0.34]
[1720033320092,7.0459,141.93,141.89,0.34]
[1720033320286,7.0462,141.92,141.89,0.34]
[1720033320925,7.0467,141.91,141.9,0.17]
[1720033321088,7.0467,141.91,141.88,0.34]
[1720033321288,7.0473,141.9,141.88,0.34]
[1720033321717,7.0469,141.91,141.88,0.34]
[1720033321900,7.0464,141.92,141.88,0.34]
[1720033322413,7.0468,141.91,141.88,0.34]
[1720033322990,7.0477,141.89,141.88,0.34]
[1720033323194,7.0477,141.89,141.88,0.17]
[1720033323399,7.0474,141.9,141.88,0.17]
[1720033324007,17.6156,141.92,141.87,0.17]
[1720033324008,7.0478,141.89,141.87,0.17]
[1720033324208,7.0478,141.89,141.86,0.17]
[1720033324408,7.0478,141.89,141.86,0.34]
[1720033324600,7.0474,141.9,141.86,0.34]
[1720033325602,7.0474,141.9,141.86,7.3889]
[1720033325911,17.6125,141.95,141.88,7.0479]
[1720033326205,7.046,141.93,141.89,0.34]
[1720033327092,7.0456,141.94,141.89,13.07570436]
[1720033327314,7.0456,141.94,141.9,7.0471]
[1720033327611,15.5016,141.97,141.91,0.34]
[1720033327821,7.0458,141.93,141.92,0.34]
[1720033327996,7.0458,141.93,141.89,4.6191]
[1720033328992,7.0463,141.92,141.89,4.6191]
[1720033329202,17.613,141.95,141.89,4.6191]
[1720033330117,7.0461,141.93,141.89,11.6667]
[1720033330332,7.0464,141.92,141.89,4.6191]
[1720033334334,15.5016,141.97,141.89,4.6191]
[1720033334335,17.6143,141.94,141.89,4.6191]
[1720033335012,7.0469,141.91,141.89,4.6191]
[1720033335213,7.0472,141.9,141.89,0.34]
[1720033335438,35.225,141.95,141.86,4.2791]
[1720033335651,26.76,141.94,141.86,4.2791]
[1720033335815,32.78292931,141.94,141.86,4.2791]
[1720033336321,7.0486,141.88,141.86,4.2791]
[1720033336512,7.0479,141.89,141.86,4.2791]
[1720033336926,7.0479,141.89,141.87,0.34]
[1720033338434,7.0474,141.9,141.87,0.34]
[1720033339422,7.0469,141.91,141.87,0.34]
[1720033339937,7.0469,141.91,141.87,7.3886]
[1720033340239,7.0464,141.92,141.88,7.0479]
[1720033340408,7.0464,141.92,141.89,0.34]
[1720033341114,22.0455,141.94,141.9,7.047]
[1720033341315,15.0,141.94,141.91,0.34]
[1720033342037,22.0453,141.94,141.91,0.34]
[1720033342345,7.0462,141.92,141.91,0.34]
[1720033343145,15.0,141.94,141.91,0.34]
[1720033343514,7.0462,141.92,141.91,0.34]
[1720033345125,7.0458,141.93,141.91,0.34]
[1720033345529,7.0458,141.93,141.9,0.34]
[1720033345731,7.0462,141.92,141.9,0.34]
[1720033346050,7.0462,141.92,141.89,0.34]
[1720033346233,7.0459,141.93,141.89,0.34]
[1720033346624,7.0459,141.93,141.89,7.3875]
[1720033347047,15.0,141.94,141.9,19.02670087]
[1720033347348,15.0,141.94,141.91,6.3656]
[1720033347638,15.0,141.94,141.92,26.07008617]
[1720033347840,15.0,141.94,141.93,13.07369664]
[1720033348246,15.0,141.94,141.93,11.6648]
[1720033348545,15.0,141.94,141.93,4.6191]
[1720033348744,15.0,141.94,141.93,0.34]
[1720033349042,15.0,141.94,141.93,8.79464554]
[1720033349635,14.64,141.94,141.93,11.6648]
[1720033357249,14.28,141.94,141.93,11.6648]
[1720033357455,12.315,141.94,141.93,13.07358487]
[1720033360842,12.315,141.94,141.93,11.6648]
[1720033362154,15.148,142.03,141.95,17.6113]
[1720033362346,15.148,142.03,141.96,0.34]
[1720033363058,15.148,142.03,141.96,7.3838]
[1720033363259,7.0421,142.01,141.96,7.3838]
[1720033363637,7.0423,142.0,141.96,7.3838]
[1720033364053,7.0419,142.01,141.96,7.3838]
[1720033364454,7.0424,142.0,141.96,7.3842]
[1720033364665,7.0429,141.99,141.96,0.34]
[1720033365464,7.0424,142.0,141.96,7.3842]
[1720033365757,7.0419,142.01,141.97,7.0435]
[1720033365956,7.0419,142.01,141.98,0.34]
[1720033367965,32.7506,142.03,141.98,0.34]
[1720033368967,7.0427,141.99,141.98,0.34]
[1720033369345,7.0423,142.0,141.98,0.34]
[1720033369564,7.0423,142.0,141.97,0.34]
[1720033373962,7.0419,142.01,141.97,7.3837]
[1720033375775,20.4119,142.01,141.97,7.3837]
[1720033376466,13.37,142.01,141.97,0.34]
[1720033376664,13.37,142.01,141.96,13.71]
[1720033376866,13.37,142.01,141.98,0.17]
[1720033377063,7.0425,142.0,141.96,7.3842]
[1720033377248,7.0433,141.98,141.93,30.9842]
[1720033377458,20.4133,141.98,141.93,30.9842]
[1720033378170,20.4133,141.98,141.94,7.045]
[1720033379364,20.4133,141.98,141.95,0.17]
[1720033379565,13.37,141.97,141.95,0.17]
[1720033379772,13.37,141.97,141.95,0.34]
[1720033380171,20.4138,141.97,141.93,24.6597]
[1720033380468,20.4138,141.97,141.91,7.0466]
[1720033380469,13.37,141.94,141.91,7.0466]
[1720033380879,13.37,141.93,141.9,24.664]
[1720033381070,13.37,141.94,141.9,24.664]
[1720033381674,7.0463,141.92,141.87,17.6206]
[1720033381855,7.0463,141.92,141.87,24.6689]
[1720033382048,7.0469,141.91,141.87,24.6689]
[1720033382252,7.0464,141.92,141.87,24.6689]
[1720033382865,17.6144,141.93,141.84,17.6243]
[1720033383062,21.771,141.92,141.84,17.6243]
[1720033383463,28.8175,141.92,141.87,7.0485]
[1720033383868,7.0467,141.91,141.87,7.0485]
[1720033384077,28.8173,141.92,141.88,7.0481]
[1720033385400,28.8173,141.92,141.89,0.17]
[1720033386499,7.0469,141.91,141.88,0.17]